Cogmind - Beta 16 @@@ ROGUE MODE // 2025.11.25 @ 15:13:02 Player: Jimothy Jimone Result: Destroyed by Y-54 Guardian with Gatling Laser Performance ------------- Evolutions (4) 2000 Regions Visited (8) 1600 Robots Destroyed (55) 275 Value Destroyed (2155) 2155 Prototype IDs (3) 60 Alien Tech Used (0) 0 Bonus (86) 86 TOTAL SCORE: 6176 Bonus ------- Follower Combat Kills 86 Cogmind --------- Core Integrity 0/850 Matter 300/300 Energy 100/100 System Corruption 2% Temperature Cool (18) Movement Core (50) Location -6/Extension Parts ------- > --- POWER (3) -------- (None) > --- PROPULSION (7) --- (None) > --- UTILITY (3) ------ (None) > --- WEAPON (2) ------- (None) > --- INVENTORY (5) ---- Ion Engine Fission Core Carbon-fiber Leg Heat Sink Heat Sink Peak State ------------ > --- POWER ------------ Light Angular Momentum Engine Fission Core Fission Core > --- PROPULSION ------- Carbon-fiber Leg Carbon-fiber Leg Carbon-fiber Leg Carbon-fiber Leg Flexi-carbon Leg Flexi-carbon Leg Flexi-carbon Leg > --- UTILITY ---------- Targeting Computer Targeting Computer Phase Shifter > --- WEAPON ----------- Bore Cannon Phasing Sabre > --- INVENTORY -------- Ion Engine Fission Core Carbon-fiber Leg Heat Sink Heat Sink [Rating: 61] Favorites ----------- Power Ion Engine Engine Ion Engine Power Core Fission Core Propulsion Aluminum Leg Leg Aluminum Leg Wheel Wheel Flight Unit Improved VTOL Module Utility Small Storage Unit Device Structural Scanner Storage Small Storage Unit Processor Targeting Computer Weapon Assault Rifle Energy Gun Spread Laser Ballistic Gun Assault Rifle Ballistic Cannon Bore Cannon Slashing Weapon Phasing Sabre Special Melee Weapon Improved Datajack Build | -11 -10 -9 -9 -8 -8 -7 -6 -6 ------- Run | Yrd Mat Mat Min Mat Sto Fac Fac Ext Slots Evolved 8 | . . 2 . 2 . 2 2 . Power 2 | . . 1 . . . . 1 . Propulsion 5 | . . 1 . 2 . 2 . . Utility 1 | . . . . . . . 1 . Weapon . | . . . . . . . . . Parts Attached 72 | 6 1 9 2 4 10 14 4 22 Power 16 | 1 . 2 1 . 3 3 . 6 Engine 11 | 1 . 2 1 . 2 3 . 2 Core 5 | . . . . . 1 . . 4 Reactor . | . . . . . . . . . Propulsion 29 | 2 . 6 . 2 5 5 . 9 Treads . | . . . . . . . . . Leg 24 | . . 6 . 2 5 2 . 9 Wheel 2 | 2 . . . . . . . . Hover . | . . . . . . . . . Flight 3 | . . . . . . 3 . . Utility 9 | 1 1 . . . . 1 3 3 Device 6 | . 1 . . . . 1 3 1 Storage 1 | 1 . . . . . . . . Processor 2 | . . . . . . . . 2 Hackware . | . . . . . . . . . Protection . | . . . . . . . . . Artifact . | . . . . . . . . . Weapon 18 | 2 . 1 1 2 2 5 1 4 Energy Gun 7 | 1 . 1 . . 2 1 . 2 Energy Cannon . | . . . . . . . . . Ballistic Gun 8 | 1 . . 1 2 . 4 . . Ballistic Cannon 1 | . . . . . . . . 1 Launcher . | . . . . . . . . . Special Weapon . | . . . . . . . . . Impact Weapon . | . . . . . . . . . Slashing Weapon 1 | . . . . . . . . 1 Piercing Weapon . | . . . . . . . . . Special Melee Weapon 1 | . . . . . . . 1 . Unidentified Prototypes 1 | . . . . . . 1 . . Parts Lost 51 | . . 2 2 2 9 16 . 20 Power 11 | . . 1 1 1 1 3 . 4 Propulsion 22 | . . . . 1 5 8 . 8 Utility 6 | . . . . . 1 1 . 4 Weapon 12 | . . 1 1 . 2 4 . 4 Highest Loss Streak 10 | . . 2 2 2 5 10 . 7 To Critical Strikes . | . . . . . . . . . Average Backups 5 | . 2 4 8 6 7 6 1 4 Power 1 | . 1 . 1 1 1 1 . 1 Propulsion 1 | . . 2 4 2 1 . . 1 Utility 1 | . . 1 2 2 2 2 1 2 Weapon 1 | . . . . 1 2 2 . . Tool/Special . | . . . . . . . . . Unused Backups 2 | . . 1 . . . 1 . . Power . | . . . . . . . . . Propulsion 1 | . . 1 . . . . . . Utility . | . . . . . . . . . Weapon 1 | . . . . . . 1 . . Tool/Special . | . . . . . . . . . Average Slot Usage (%) 79 | . 97 90 95 94 92 81 21 60 Engine 9 | . 14 22 19 15 7 8 2 2 Core 3 | . . . . . 6 2 . 8 Leg 29 | . . 17 33 41 42 39 . 26 Wheel 3 | . 28 10 . . . . . . Flight 1 | . . . . . . 4 6 . Device 6 | . 11 10 11 9 8 5 7 1 Storage 6 | . 14 11 11 9 9 5 . . Processor 1 | . . . . . . . . 9 Energy Gun 5 | . 14 7 11 6 3 2 . 4 Ballistic Gun 8 | . 14 11 9 11 14 10 . . Peak Build Rating 61 | 6 7 11 11 15 23 43 12 61 Average Rating 20 | 4 6 9 10 14 18 27 9 34 On Entrance 9 | . 6 7 11 11 15 16 4 12 Avg Prop Armor Cover (%) 12 | . . . . . . 12 . . Naked Turns 6 | . . . . . . . . 6 Heaviest Build 43 | 14 15 23 23 24 26 35 5 43 Greatest Support 120 | 26 26 30 30 50 62 92 5 120 Greatest Overweight (x) 6 | . . 1 . . . 6 . 2 Average Overweight (x) . | . . . . . . . . . Largest Inventory Capacity 8 | 8 8 8 8 8 8 8 5 5 Average Capacity 7 | 7 8 8 8 8 8 7 5 5 Most Carried 8 | 2 3 8 8 7 8 8 4 5 Average Carried 5 | . 2 4 7 6 7 6 1 4 Final Capacity 8 | 8 8 8 8 8 8 5 5 5 Final Carried 8 | 1 3 8 8 6 8 3 3 5 Class Distribution -------------------- 62% | Scavenger-Mutant 34% | Mutant 3% | Sprinter Dominant Class ---------------- Mutant | -10/Materials Mutant | -9/Materials Mutant | -9/Mines Scavenger-Mutant | -8/Materials Scavenger-Mutant | -8/Storage Scavenger-Mutant | -7/Factory Mutant | -6/Factory Scavenger-Mutant | -6/Extension Resources | -11 -10 -9 -9 -8 -8 -7 -6 -6 ----------- Run | Yrd Mat Mat Min Mat Sto Fac Fac Ext Matter Collected 1566 | 192 77 183 20 62 297 111 . 624 Remotely . | . . . . . . . . . Salvage Created 2262 | . 77 338 48 143 702 350 . 604 Parts 112 | . 3 22 7 9 31 19 . 21 Haulers Intercepted 1 | . . . . . . 1 . . Recyclers Shooed 2 | . . . . . . 2 . . Parts Field Recycled . | . . . . . . . . . Retrieved Matter . | . . . . . . . . . Parts Self-Destructed . | . . . . . . . . . Prevented . | . . . . . . . . . Parts Restored . | . . . . . . . . . Kills | -11 -10 -9 -9 -8 -8 -7 -6 -6 ------- Run | Yrd Mat Mat Min Mat Sto Fac Fac Ext Combat Hostiles Destroyed 47 | . 2 8 4 3 14 6 . 10 Melee 5 | . . . . . . . . 5 Guns 38 | . 2 8 4 3 14 5 . 2 Cannons 3 | . . . . . . . . 3 AOE 1 | . . . . . . 1 . . Classes Destroyed 10 | . 1 1 1 . . 5 . 2 Worker 1 | . . . . . . 1 . . Builder 3 | . . . . . . 2 . 1 Hauler 1 | . . . . . . 1 . . Recycler 2 | . . . . . . 2 . . Watcher 1 | . . . . . . . . 1 Swarmer 5 | . . . 4 . . 1 . . Grunt 22 | . 2 6 . . 9 3 . 2 Sentry 14 | . . 2 . 3 5 . . 4 Hunter 1 | . . . . . . . . 1 Programmer 3 | . . . . . . 2 . 1 Thug 1 | . . . . . . . . 1 Guerrilla 1 | . . . . . . . . 1 Best Kill Streak 9 | . 2 2 4 2 4 9 . 4 Combat Bots Only 4 | . 2 2 4 2 4 3 . 4 Max Kills in Single Turn 7 | . 1 1 1 1 1 7 . 2 Gunslinging . | . . . . . . . . . Exploded 1 | . . . . . . 1 . . Melee 1 | . . . . . . . . 1 Uniques/NPCs Destroyed . | . . . . . . . . . Combat | -11 -10 -9 -9 -8 -8 -7 -6 -6 -------- Run | Yrd Mat Mat Min Mat Sto Fac Fac Ext Hostile Shots Fired 821 | . 12 41 41 18 114 192 3 400 Missed 324 | . 2 11 13 6 33 70 3 186 Hits 497 | . 10 30 28 12 81 122 . 214 Projectile 497 | . 10 30 28 12 81 122 . 214 Critical Strikes 14 | . . 2 . 1 1 9 . 1 Damage Taken 6065 | . 106 450 219 179 1160 1789 . 2162 Core 1507 | . 20 81 33 44 106 362 . 861 Absorbed by Shields . | . . . . . . . . . Regen/Repaired (Parts) 82 | . . 10 . . 72 . . . Core Remaining (%) 76 | 100 92 . 71 . 72 48 . . Volleys Fired 147 | . 6 28 6 6 49 26 . 26 Largest 2 | . 2 2 2 2 2 2 . 2 Hottest 161 | . 70 85 85 90 90 75 . 161 Shots Fired 244 | . 12 34 7 12 93 49 . 37 Gun 226 | . 12 34 7 12 93 49 . 19 Cannon 18 | . . . . . . . . 18 Launcher . | . . . . . . . . . Special . | . . . . . . . . . Kinetic 174 | . 6 28 1 8 71 42 . 18 Thermal 63 | . 6 6 6 4 22 . . 19 Explosive . | . . . . . . . . . Electromagnetic 7 | . . . . . . 7 . . Robot Hit Streak 9 | . 4 7 3 9 9 7 . 6 Robot Miss Streak 15 | . 1 2 8 3 4 15 . 7 Penetration Max 2 | . . . . . . . . 2 Secondary Targets 8 | . 1 . . . 4 3 . . Max Gunslinging Chain 1 | . 1 . . . 1 1 . . Shots Hit Robots 187 | . 9 28 5 8 60 39 . 38 Core Hits 141 | . 4 18 11 9 31 46 . 22 Critical Kills 4 | . . . . . 1 . . 3 Critical Parts Destroyed 3 | . . . . . . . . 3 Critical Strikes 11 | . 1 . . . 1 . . 9 Burn 2 | . 1 . . . . . . 1 Destroy 7 | . . . . . 1 . . 6 Sever 2 | . . . . . . . . 2 Melee Attacks 17 | . . . . . . . . 17 Impact . | . . . . . . . . . Slashing 15 | . . . . . . . . 15 Piercing . | . . . . . . . . . Sneak Attacks 5 | . . . . . . . . 5 Combat Hostiles . | . . . . . . . . . Follow-up Attacks . | . . . . . . . . . Damage Inflicted 4659 | . 115 348 72 155 1151 1523 . 1295 Guns 2782 | . 115 348 65 155 1151 604 . 344 Cannons 205 | . . . . . . . . 205 Explosions 919 | . . . . . . 919 . . Melee 707 | . . . . . . . . 707 Ramming 46 | . . . 7 . . . . 39 Kinetic 2225 | . 40 312 . 95 978 595 . 205 Thermal 1672 | . 75 36 65 60 173 919 . 344 Explosive . | . . . . . . . . . Electromagnetic 9 | . . . . . . 9 . . Impact . | . . . . . . . . . Slashing 707 | . . . . . . . . 707 Piercing . | . . . . . . . . . Highest Corruption 2 | . . . . . . 2 . 2 Average Corruption 1 | . . . . . . 1 . 2 Corruption Purged . | . . . . . . . . . Corruption Blocked . | . . . . . . . . . Effects 7 | . . . . . . 7 . . Message Errors 1 | . . . . . . 1 . . Matter Fused 2 | . . . . . . 2 . . Data Loss (minor) 4 | . . . . . . 4 . . Overload Shots . | . . . . . . . . . Overflow Damage 285 | . . . . . . 269 . 16 Projectiles . | . . . . . . . . . Explosions 269 | . . . . . . 269 . . Melee 16 | . . . . . . . . 16 Knockbacks 3 | . . . . . . . . 3 Impact . | . . . . . . . . . Kinetic 2 | . . . . . . . . 2 Secondary 1 | . . . . . . . . 1 Self-Inflicted Damage 16 | . . . . . . . . 16 Shots . | . . . . . . . . . Rammed 6 | . . . . . . . . 6 Targets Rammed 9 | . . . 2 . . . . 7 Kicked 3 | . . . 2 . . . . 1 Crushed . | . . . . . . . . . Highest Temperature 432 | . 74 129 90 156 432 53 . 261 Average Temperature 108 | . 41 48 43 77 156 27 . 101 Received Heat Transfer 1791 | . 60 216 . 72 486 555 . 402 Effects 6 | . . . . . 6 . . . Shutdowns 3 | . . . . . 3 . . . Interference 1 | . . . . . 1 . . . Damage (minor) 2 | . . . . . 2 . . . Siege Activations . | . . . . . . . . . Martial Activations . | . . . . . . . . . Shielding Activations . | . . . . . . . . . Robots Disrupted . | . . . . . . . . . Combat Hostiles . | . . . . . . . . . Robots Corrupted . | . . . . . . . . . Combat Hostiles . | . . . . . . . . . Parts Fried . | . . . . . . . . . Impact Corruptions . | . . . . . . . . . Robots Melted . | . . . . . . . . . Combat Hostiles . | . . . . . . . . . Parts Melted 6 | . 1 . . . . . . 5 Heat Transferred 2236 | . 296 89 80 80 407 550 . 734 Parts Sabotaged . | . . . . . . . . . Parts Stolen . | . . . . . . . . . Parts Stripped . | . . . . . . . . . Power Chain Reactions . | . . . . . . . . . Alert | -11 -10 -9 -9 -8 -8 -7 -6 -6 ------- Run | Yrd Mat Mat Min Mat Sto Fac Fac Ext Maximum Alert Level . | . . . . . . . . . Low Security (%) 100 | 100 100 100 100 100 100 100 100 100 Level 1 . | . . . . . . . . . Level 2 . | . . . . . . . . . Level 3 . | . . . . . . . . . Level 4 . | . . . . . . . . . Level 5 . | . . . . . . . . . High Security . | . . . . . . . . . Max Security . | . . . . . . . . . Peak Influence 158 | . 30 115 92 51 158 158 45 64 Initial 47 | . . . 22 8 16 47 45 21 Average 40 | . 6 43 54 18 85 34 20 23 Influence Increases 1499 | . 40 222 90 91 392 336 45 283 Destroy 0b10 Robot/C 980 | . 40 160 80 60 280 120 . 240 Destroy 0b10 Robot/NC 40 | . . . . . . 30 . 10 Destroy Leader 204 | . . 40 10 30 80 22 . 22 Allied During Kill 4 | . . . . . . . . 4 Successful Hack 7 | . . 7 . . . . . . Disable Machine 75 | . . . . . 15 60 . . Destroy Structure 24 | . . . . 1 2 14 . 7 Lose Combat Pursuer 165 | . . 15 . . 15 90 45 . Influence Decreases 1499 | . 40 163 127 72 327 348 94 328 Entered New Map 208 | . . . 37 14 25 59 49 24 Time Decay 914 | . 40 143 70 38 212 149 45 217 Lost Part 357 | . . 20 20 20 90 140 . 67 Lost Ally 20 | . . . . . . . . 20 Squads Dispatched 9 | . . 1 . . 1 5 1 1 Investigation 2 | . . . . . 1 1 . . Extermination 1 | . . . . . . 1 . . Reinforcement 6 | . . 1 . . . 3 1 1 Assault . | . . . . . . . . . Garrison . | . . . . . . . . . Intercept . | . . . . . . . . . Searches Triggered . | . . . . . . . . . Construction Impeded . | . . . . . . . . . Haulers Reinforced . | . . . . . . . . . Active Scanning Responses . | . . . . . . . . . Cargo Convoy Interrupts . | . . . . . . . . . Stealth | -11 -10 -9 -9 -8 -8 -7 -6 -6 --------- Run | Yrd Mat Mat Min Mat Sto Fac Fac Ext Distress Signals 3 | . . . . . . 1 . 2 Communications Jammed . | . . . . . . . . . Distress Signals . | . . . . . . . . . Times Spotted 102 | . 2 9 8 4 22 29 8 20 Peak Tracking Total 11 | . 2 4 4 4 6 11 7 7 Tactical Retreats 5 | . . 1 . . 1 2 1 . Traps | -11 -10 -9 -9 -8 -8 -7 -6 -6 ------- Run | Yrd Mat Mat Min Mat Sto Fac Fac Ext Traps Triggered 4 | . . 1 . . 2 . . 1 Indirectly . | . . . . . . . . . Trap Hack Attempts . | . . . . . . . . . Triggered . | . . . . . . . . . Disarmed . | . . . . . . . . . Reprogrammed . | . . . . . . . . . Reused . | . . . . . . . . . Traps Extracted . | . . . . . . . . . Installed . | . . . . . . . . . Triggered . | . . . . . . . . . Machines | -11 -10 -9 -9 -8 -8 -7 -6 -6 ---------- Run | Yrd Mat Mat Min Mat Sto Fac Fac Ext Machines Disabled 5 | . . . . . 1 4 . . Max in Single Turn 4 | . . . . . 1 4 . . Machines Repaired . | . . . . . . . . . Machines Dismantled . | . . . . . . . . . Machines Sabotaged . | . . . . . . . . . Overloaded Fab Kills . | . . . . . . . . . Hacking | -11 -10 -9 -9 -8 -8 -7 -6 -6 --------- Run | Yrd Mat Mat Min Mat Sto Fac Fac Ext Machines Accessed 17 | . 3 5 . . 5 2 . 2 Terminals 11 | . 2 2 . . 4 1 . 2 Fabricators 1 | . . . . . . 1 . . Repair Stations 2 | . . 1 . . 1 . . . Recycling Units 1 | . 1 . . . . . . . Scanalyzers 2 | . . 2 . . . . . . Garrison Access . | . . . . . . . . . Total Hacks 28 | . 3 10 . . 8 5 . 2 Successful 11 | . . 6 . . 3 2 . . Failed 16 | . 3 3 . . 5 3 . 2 Catastrophic 2 | . . . . . 2 . . . Database Lockouts 1 | . . 1 . . . . . . Manual 5 | . 1 1 . . 3 . . . Terminals 17 | . 2 4 . . 5 4 . 2 Fabricators 1 | . . . . . . 1 . . Repair Stations 6 | . . 3 . . 3 . . . Recycling Units 1 | . 1 . . . . . . . Scanalyzers 3 | . . 3 . . . . . . Garrison Access . | . . . . . . . . . Terminal Hacks 5 | . . 3 . . 1 1 . . Record 2 | . . 2 . . . . . . Prototype ID Bank 1 | . . 1 . . . . . . Open Door 1 | . . . . . 1 . . . Open DSF 1 | . . . . . . 1 . . Fabricator Hacks 1 | . . . . . . 1 . . Network Status 1 | . . . . . . 1 . . Repair Station Hacks 4 | . . 2 . . 2 . . . Scan Component 2 | . . 1 . . 1 . . . Repair 2 | . . 1 . . 1 . . . Recycling Unit Hacks . | . . . . . . . . . Scanalyzer 1 | . . 1 . . . . . . Retrieve Study 1 | . . 1 . . . . . . Garrison Access Hacks . | . . . . . . . . . Unauthorized Hacks . | . . . . . . . . . Terminals . | . . . . . . . . . Fabricators . | . . . . . . . . . Repair Stations . | . . . . . . . . . Recycling Units . | . . . . . . . . . Scanalyzers . | . . . . . . . . . Garrison Access . | . . . . . . . . . Data Cores Recovered . | . . . . . . . . . Used . | . . . . . . . . . Hacking Detections 11 | . 2 3 . . 4 1 . 1 Full Trace Events 2 | . . . . . 1 1 . . Feedback Events . | . . . . . . . . . Feedback Blocked . | . . . . . . . . . Robot Schematics Acquired . | . . . . . . . . . Robots Built . | . . . . . . . . . Authchips . | . . . . . . . . . Time . | . . . . . . . . . Total Robot Build Rating . | . . . . . . . . . Part Schematics Acquired . | . . . . . . . . . Parts Built . | . . . . . . . . . Authchips . | . . . . . . . . . Time . | . . . . . . . . . Total Part Build Rating . | . . . . . . . . . Part Studies Acquired 1 | . . 1 . . . . . . Parts Repaired 2 | . . 1 . . 1 . . . Time 52 | . . 26 . . 26 . . . Parts Recycled . | . . . . . . . . . Recycled Matter . | . . . . . . . . . Retrieved Matter . | . . . . . . . . . Retrieved Components . | . . . . . . . . . Parts Scanalyzed . | . . . . . . . . . Part Schematics Acquired . | . . . . . . . . . Parts Damaged . | . . . . . . . . . Bothacking | -11 -10 -9 -9 -8 -8 -7 -6 -6 ------------ Run | Yrd Mat Mat Min Mat Sto Fac Fac Ext Used RIF Installer . | . . . . . . . . . Robots Hacked . | . . . . . . . . . Non-combat . | . . . . . . . . . Combat . | . . . . . . . . . Robot Hacks Applied . | . . . . . . . . . Relay Couplers Released . | . . . . . . . . . Fabnet Peak Effective % . | . . . . . . . . . Robots Rewired 2 | . . . . . . . . 2 Allies Hacked . | . . . . . . . . . Hacks Repelled . | . . . . . . . . . Allies | -11 -10 -9 -9 -8 -8 -7 -6 -6 -------- Run | Yrd Mat Mat Min Mat Sto Fac Fac Ext Total Allies 2 | . . . . . . . . 2 Largest Group 1 | . . . . . . . . 1 Highest-Rated Group 31 | . . . . . . . . 31 Highest-Rated Ally 31 | . . . . . . . . 31 Total Orders . | . . . . . . . . . Ally Attacks 20 | . . . . . . . . 20 Total Damage 396 | . . . . . . . . 396 Kills 2 | . . . . . . . . 2 Allies Corrupted . | . . . . . . . . . Allies Melted . | . . . . . . . . . Intel | -11 -10 -9 -9 -8 -8 -7 -6 -6 ------- Run | Yrd Mat Mat Min Mat Sto Fac Fac Ext Active Infowar (turns) 1333 | . 143 405 150 120 515 . . . Structural 1333 | . 143 405 150 120 515 . . . Robot Analysis Total . | . . . . . . . . . Derelict Logs Recovered 1 | . . . 1 . . . . . Drone Launches . | . . . . . . . . . Drone Recoveries . | . . . . . . . . . Exploration | -11 -10 -9 -9 -8 -8 -7 -6 -6 ------------- Run | Yrd Mat Mat Min Mat Sto Fac Fac Ext Turns Passed 2905 | 63 161 433 150 120 533 691 138 616 Spaces Moved 2450 | 60 142 305 125 65 293 709 230 521 Core 23 | 3 . . . . . 2 . 18 Treads . | . . . . . . . . . Legs 1340 | . . 165 125 65 293 417 . 275 Wheels 339 | 57 142 140 . . . . . . Hover . | . . . . . . . . . Flight 748 | . . . . . . 290 230 228 Fastest Speed 29 | 50 90 90 105 105 105 29 35 35 Average Speed 85 | 87 90 100 105 105 107 81 35 85 Slowest Speed 505 | 90 90 190 105 105 118 505 35 190 Overloaded Moves . | . . . . . . . . . Propulsion Burnouts . | . . . . . . . . . Robots Hopped 3 | . . . . . . 1 . 2 Potential Cave-ins . | . . . . . . . . . Cave-ins Triggered . | . . . . . . . . . Exploration Rate (%) 24 | 4 24 28 23 10 52 17 10 49 Regions Visited 8 Branch Regions 3 Pre-discovered Areas . | . . . . . . . . . Known Exits Taken 1 | . . . 1 . . . . . Unknown Exits Taken 7 | 1 1 1 . 1 1 1 1 . Scrap Searched 1 | . . . 1 . . . . . Spaces Dug . | . . . . . . . . . Terrain Destroyed 31 | . . . . . . 19 . 12 Melee . | . . . . . . . . . Projectile 12 | . . . . . . . . 12 AOE 19 | . . . . . . 19 . . Terrain Rammed . | . . . . . . . . . Walls Destroyed . | . . . . . . . . . Machines Disabled . | . . . . . . . . . Actions | -11 -10 -9 -9 -8 -8 -7 -6 -6 --------- Run | Yrd Mat Mat Min Mat Sto Fac Fac Ext Total 2968 | 68 162 397 136 104 423 768 287 623 Wait 226 | . 12 43 . 29 64 12 49 17 Move 2436 | 59 141 304 124 64 292 706 229 517 Hop 3 | . . . . . . 1 . 2 Pick Up 21 | 3 2 7 1 . 1 3 1 3 Fast Attach 42 | 4 1 3 2 . 7 5 1 19 Attach 23 | 2 . 3 . 3 1 8 4 2 Detach 5 | . . 2 . . . . 3 . Swap 16 | . . 4 . 2 4 3 . 3 Drop 15 | . . 3 1 . 1 4 . 6 Fire 147 | . 6 28 6 6 49 26 . 26 Melee 17 | . . . . . . . . 17 Ram 6 | . . . . . . . . 6 Kick 3 | . . . 2 . . . . 1 Crush . | . . . . . . . . . Escape Stasis 4 | . . . . . 4 . . . Rewire 4 | . . . . . . . . 4 Trap . | . . . . . . . . . Miscellaneous . | . . . . . . . . . Route ------- -11/Scrapyard -10/Materials -9/Materials -9/Mines -8/Materials -8/Storage -7/Factory -6/Factory -6/Extension History --------- Turn | Location | Event 6 | -11/Scrapyard | Discovered new exit (range 16) 64 | -11/Scrapyard | Entered Materials 214 | -10/Materials | Discovered new exit (range 10) 225 | -10/Materials | Entered another Materials area 225 | -9/Materials | Evolved 2 slots: Power x1, Propulsion x1 303 | -9/Materials | Build established: Mutant 309 | -9/Materials | Repaired Structural Scanner 570 | -9/Materials | Central database locked down 655 | -9/Materials | Discovered new exit (range 3) 658 | -9/Materials | Entered Mines 690 | -9/Mines | Assembled infested the area 700 | -9/Mines | Identified exit to Materials 808 | -9/Mines | Entered Materials 808 | -8/Materials | Evolved 2 slots: Propulsion x2 847 | -8/Materials | Discovered new exit (range 10) 928 | -8/Materials | Entered Storage 987 | -8/Storage | Repaired Aluminum Leg+ 1119 | -8/Storage | Build established: Scavenger-Mutant 1395 | -8/Storage | Lost 5 parts (1p3n1w) 1445 | -8/Storage | Discovered new exit (range 15) 1461 | -8/Storage | Entered Factory 1461 | -7/Factory | Evolved 2 slots: Propulsion x2 2102 | -7/Factory | Lost 10 parts (2p4n1u3w) 2147 | -7/Factory | Discovered new exit (range 14) 2151 | -7/Factory | Core integrity fell below 50% 2152 | -7/Factory | Entered another Factory area 2152 | -6/Factory | Evolved 2 slots: Power x1, Utility x1 2182 | -6/Factory | Lost 3 parts (2n1w) 2284 | -6/Factory | Discovered new exit (range 13) 2290 | -6/Factory | Entered Extension 2324 | -6/Extension | Spotted B-75 Beast 2421 | -6/Extension | Lost 3 parts (1n1u1w) 2589 | -6/Extension | Lost 3 parts (1n1u1w) 2841 | -6/Extension | Core integrity fell below 50% 2880 | -6/Extension | Lost 5 parts (1p4n) 2901 | -6/Extension | Core integrity fell below 20% 2906 | -6/Extension | Destroyed by Y-54 Guardian with Gatling Laser Last Messages --------------- TERMINAL." ALERT: Hostiles spotted, dispatching reinforcements to Terminal E003. Carbon-fiber Leg destroyed. Flexi-carbon Leg destroyed. Fission Core destroyed. Carbon-fiber Leg destroyed. U-05 Engineer destroyed. Hvy. Beamcaster destroyed. Fission Core destroyed. Carbon-fiber Leg destroyed. Gatling Laser destroyed. Targeting Computer destroyed. Lgt. Angular Momentum Engine destroyed. Slammed into Y-54 Guardian. Targeting Computer destroyed. System corrupted by crushing effect (+2). Slammed into Y-54 Guardian. Destabilizing: Core damaged (-42). Slammed into Y-54 Guardian. Map ----- +----------------------------------------------------+ | ????? #???# #?????????????????????????????? | | #######+##### #?????????????????????????????? | | # #?????????????????????????????? | | # #?????????????????????????????? | | # ########??????????????????????? | | # #??????????????????????? | | # #??????????????????????? | | # ################# #??????????????????????? | | #???????????????# #??????????????????????? | | ####+##+#???????????????# #??????????????????????? | | ??# ^ ?????????????????# #??????????????????????? | | ??# ""T????????####???#Y#??????????????????????? | | ??# """""??????? #???# #??????????????????????? | | ?? ???????# #???# #??????????????????????? | | ?####"T"####??????# #####Y#??????????????????????? | | ?????"""#?????????#%= #??????????????????????? | | ?????####????????##/##### #??????????????????????? | | ?????????????????#!=* ??# #??????????????????????? | | ?????????????????# ! # #??????????????????????? | | ?????????????????# * = / #??????????????????????? | | ?????????????????# # #??????????????????????? | | ?????????????????# = ?#%#??????????????????????? | | ?????????????????# ?#%#??????????????????????? | | ?????????????????########%#??????????????????????? | | ????????????????????????#%#??????????????????????? | | ????????????????????????#@#??????????????????????? | | ???????????????????????""Y""?????????????????????? | | ??????????????????????# " " ???????????????????? | | ??????????????????????# Y ?????????????????? | | ??????????????????????# ???????????????? | | ####################### ??????????????? | | ???????????????? | | BB ??????????????? | | BB ?????????????? | | ? ??????????????? | | k uu ?? ???????????????? | | ####################### ??????????????????? | | ??????????????????????# ???????????????????? | | ??????????????????????# ????????????????????? | | ??????????????????????# ????????????????????? | | ??????????????????????? ?????????????????????? | | ?????????????????????????????????????????????????? | | ?????????????????????????????????????????????????? | | ?????????????????????????????????????????????????? | | | | | | | | | | | | | +----------------------------------------------------+ Best States ------------- Heat Dissipation 61 Energy Generation 44 Energy Capacity 580 Matter Stores 300 Matter Capacity 300 Sight Range 16 Terrain Scan Density 10 Power Amplification 20 Phase Shifting 5 Evasion (%) 64 Targeting Accuracy 10 Item Schematics ----------------- None Robot Schematics ------------------ None Fabricated ------------ Nothing Repaired ---------- Structural Scanner | 50% | -9/Materials Aluminum Leg | 20% | -8/Storage Studied --------- Aluminum Leg | -9/Materials | Hacked Alien Tech Used ----------------- None Achievements -------------- A New Friend Challenges ------------ None Game ------ Seed PartitionLaserAccelerator Manual? 0 Play Time 00:50:04 Cumulative 11.6 hours Start 2025.11.25 @ 14:24:03 End 2025.11.25 @ 15:13:02 Sessions 1 Manual Loads 0 Difficulty Rogue Special Mode None Game No. 17 Rogue 17 Adventurer 0 Explorer 0 Win Type - Total 0 Types 0/0/0/0/0/0/0/0/0/0 Lore% 6 Gallery% 13 Achievement% 11 Wizard Run 0 Options --------- Layout 1 ASCII 0 Keyboard 1 Movement Arrows Keybinds 0 Fullscreen 0 Font 14/SmallcapsGlow Map View 55x38 Zoom Use 0% Tactical HUD 0 Map Filters NONE Filters NONE Steam 1 RUN: ad351896-2f56-4e1f-9d15-c591290c51ff